[Event "*** MasterClass Titled Tuesday Blitz"]
[Site "Chess.com"]
[Date "2017.11.07"]
[Round "6"]
[White "Sam_ChessMood"]
[Black "severomorskij"]
[Result "1/2-1/2"]
[WhiteElo "2634"]
[BlackElo "2642"]
[TimeControl "180+2"]
[EndTime "15:31:29 PST"]
[Termination "Game drawn by repetition"]

1. e4 {[%clk 0:03:01.9]} 1... c5 {[%clk 0:02:59.9]} 2. Nf3 {[%clk 0:03:02.9]}
2... e6 {[%clk 0:03:01]} 3. g3 {[%clk 0:02:58.6]} 3... Nc6 {[%clk 0:02:59.4]} 4.
Bg2 {[%clk 0:02:59.3]} 4... Nf6 {[%clk 0:03:00.9]} 5. Qe2 {[%clk 0:03:00.5]}
5... e5 {[%clk 0:03:00.1]} 6. O-O {[%clk 0:03:00.2]} 6... Be7 {[%clk 0:03:01.2]}
7. c3 {[%clk 0:02:50.3]} 7... O-O {[%clk 0:03:01.3]} 8. Rd1 {[%clk 0:02:50.6]}
8... d5 {[%clk 0:02:59]} 9. d3 {[%clk 0:02:48.9]} 9... d4 {[%clk 0:02:35.4]} 10.
Nbd2 {[%clk 0:02:43.1]} 10... Rb8 {[%clk 0:02:22.5]} 11. Nc4 {[%clk 0:02:40.3]}
11... Nd7 {[%clk 0:02:23.1]} 12. a4 {[%clk 0:02:39.9]} 12... b6 {[%clk
0:02:23.5]} 13. Rf1 {[%clk 0:02:21.3]} 13... a6 {[%clk 0:02:21.6]} 14. cxd4
{[%clk 0:01:52.7]} 14... cxd4 {[%clk 0:02:21.1]} 15. Bd2 {[%clk 0:01:53]} 15...
f6 {[%clk 0:01:43.4]} 16. Qd1 {[%clk 0:01:40.4]} 16... a5 {[%clk 0:01:32.1]} 17.
Ne1 {[%clk 0:01:14.8]} 17... Bb4 {[%clk 0:01:27.1]} 18. Bxb4 {[%clk 0:01:06.9]}
18... Nxb4 {[%clk 0:01:25.7]} 19. f4 {[%clk 0:01:07.1]} 19... Ba6 {[%clk
0:01:18.2]} 20. b3 {[%clk 0:01:06.8]} 20... Bxc4 {[%clk 0:01:15]} 21. bxc4
{[%clk 0:01:06.3]} 21... Nc5 {[%clk 0:01:15.9]} 22. f5 {[%clk 0:00:42.6]} 22...
Qd7 {[%clk 0:01:14.2]} 23. Ra3 {[%clk 0:00:42.9]} 23... Kf7 {[%clk 0:01:07.2]}
24. g4 {[%clk 0:00:41.7]} 24... h6 {[%clk 0:01:04.7]} 25. h4 {[%clk 0:00:39.6]}
25... Ke7 {[%clk 0:01:05.4]} 26. Nc2 {[%clk 0:00:35.4]} 26... Nxc2 {[%clk
0:00:56.3]} 27. Qxc2 {[%clk 0:00:36.4]} 27... Kd6 {[%clk 0:00:53.5]} 28. Rb1
{[%clk 0:00:36.7]} 28... Kc7 {[%clk 0:00:53.3]} 29. Rb5 {[%clk 0:00:37.7]} 29...
g6 {[%clk 0:00:32.7]} 30. Ra1 {[%clk 0:00:32.3]} 30... gxf5 {[%clk 0:00:33]} 31.
exf5 {[%clk 0:00:33.4]} 31... Rg8 {[%clk 0:00:32.9]} 32. Qe2 {[%clk 0:00:28.6]}
32... h5 {[%clk 0:00:21.3]} 33. g5 {[%clk 0:00:24.9]} 33... fxg5 {[%clk
0:00:22.5]} 34. Qxe5+ {[%clk 0:00:10.4]} 34... Qd6 {[%clk 0:00:23.3]} 35. Qxd6+
{[%clk 0:00:11.8]} 35... Kxd6 {[%clk 0:00:24]} 36. Rab1 {[%clk 0:00:13.4]} 36...
Kc7 {[%clk 0:00:17.1]} 37. Bd5 {[%clk 0:00:14.5]} 37... Rgf8 {[%clk 0:00:13.9]}
38. hxg5 {[%clk 0:00:14.3]} 38... Rxf5 {[%clk 0:00:14]} 39. Rf1 {[%clk
0:00:14.5]} 39... Rxf1+ {[%clk 0:00:11.3]} 40. Kxf1 {[%clk 0:00:15.7]} 40...
Rf8+ {[%clk 0:00:11.1]} 41. Ke2 {[%clk 0:00:14.8]} 41... Rf5 {[%clk 0:00:09.8]}
42. g6 {[%clk 0:00:15.6]} 42... Rg5 {[%clk 0:00:09.8]} 43. Bf7 {[%clk
0:00:16.5]} 43... h4 {[%clk 0:00:08.9]} 44. Rb1 {[%clk 0:00:16.8]} 44... Rg3
{[%clk 0:00:05.5]} 45. Rh1 {[%clk 0:00:16.2]} 45... h3 {[%clk 0:00:06.2]} 46.
Kf2 {[%clk 0:00:16]} 46... Rxd3 {[%clk 0:00:03.6]} 47. g7 {[%clk 0:00:14.5]}
47... Ne4+ {[%clk 0:00:04.7]} 48. Ke2 {[%clk 0:00:10]} 48... Re3+ {[%clk
0:00:05.1]} 49. Kd1 {[%clk 0:00:11.3]} 49... Nf6 {[%clk 0:00:05.6]} 50. g8=Q
{[%clk 0:00:08.8]} 50... Nxg8 {[%clk 0:00:06.5]} 51. Bxg8 {[%clk 0:00:10.2]}
51... Kd6 {[%clk 0:00:07.7]} 52. Kd2 {[%clk 0:00:10.4]} 52... Kc5 {[%clk
0:00:08]} 53. Bd5 {[%clk 0:00:11.5]} 53... Ra3 {[%clk 0:00:08.4]} 54. Rb1 {[%clk
0:00:08.9]} 54... Ra2+ {[%clk 0:00:04.9]} 55. Kd3 {[%clk 0:00:09.6]} 55... Ra3+
{[%clk 0:00:06.1]} 56. Kd2 {[%clk 0:00:10.9]} 56... Ra2+ {[%clk 0:00:07.1]} 57.
Kd3 {[%clk 0:00:09.8]} 57... Ra3+ {[%clk 0:00:08.3]} 58. Ke4 {[%clk 0:00:10]}
58... Re3+ {[%clk 0:00:09.1]} 59. Kf4 {[%clk 0:00:11]} 59... h2 {[%clk
0:00:07.9]} 60. Rb5+ {[%clk 0:00:12]} 60... Kd6 {[%clk 0:00:09.2]} 61. Rxb6+
{[%clk 0:00:13.5]} 61... Kc5 {[%clk 0:00:08.9]} 62. Rh6 {[%clk 0:00:14]} 62...
Re2 {[%clk 0:00:07.2]} 63. Kg3 {[%clk 0:00:05.9]} 63... d3 {[%clk 0:00:06.2]}
64. Bf3 {[%clk 0:00:07]} 64... Ra2 {[%clk 0:00:06.1]} 65. Rc6+ {[%clk
0:00:05.5]} 65... Kd4 {[%clk 0:00:06.3]} 66. c5 {[%clk 0:00:02.8]} 66... d2
{[%clk 0:00:04.8]} 67. Rc8 {[%clk 0:00:04]} 67... d1=Q {[%clk 0:00:03]} 68. Rd8+
{[%clk 0:00:05.1]} 68... Kxc5 {[%clk 0:00:04.2]} 69. Rxd1 {[%clk 0:00:06.1]}
69... Rxa4 {[%clk 0:00:05.2]} 70. Kxh2 {[%clk 0:00:06.9]} 70... Rd4 {[%clk
0:00:06.1]} 71. Ra1 {[%clk 0:00:05.9]} 71... a4 {[%clk 0:00:07.2]} 72. Bd1
{[%clk 0:00:04.8]} 72... a3 {[%clk 0:00:06.6]} 73. Bb3 {[%clk 0:00:05.5]} 73...
Kb4 {[%clk 0:00:07.4]} 74. Bf7 {[%clk 0:00:04.4]} 74... Rd7 {[%clk 0:00:07.1]}
75. Be6 {[%clk 0:00:04.8]} 75... Rd6 {[%clk 0:00:08.3]} 76. Bf7 {[%clk
0:00:05.2]} 76... Rd7 {[%clk 0:00:09.5]} 77. Be6 {[%clk 0:00:05.1]} 77... Rd6
{[%clk 0:00:10.7]} 78. Bf7 {[%clk 0:00:05.3]} 78... Rd7 {[%clk 0:00:11.8]}
1/2-1/2

[Event "*** MasterClass Titled Tuesday Blitz"]
[Site "Chess.com"]
[Date "2017.11.07"]
[Round "6"]
[White "Sanan_Sjugirov"]
[Black "Tarlev_Konstantin"]
[Result "0-1"]
[WhiteElo "2650"]
[BlackElo "2632"]
[TimeControl "180+2"]
[EndTime "15:31:35 PST"]
[Termination "Tarlev_Konstantin won by resignation"]

1. Nf3 {[%clk 0:03:01.9]} 1... Nf6 {[%clk 0:03:00.6]} 2. g3 {[%clk 0:03:01.8]}
2... b6 {[%clk 0:03:01.3]} 3. d3 {[%clk 0:03:00]} 3... Bb7 {[%clk 0:02:58.3]} 4.
e4 {[%clk 0:03:00.4]} 4... c5 {[%clk 0:02:57.7]} 5. Bg2 {[%clk 0:03:00.1]} 5...
d6 {[%clk 0:02:56.8]} 6. O-O {[%clk 0:03:00.5]} 6... g6 {[%clk 0:02:52.5]} 7. a4
{[%clk 0:02:53.4]} 7... Bg7 {[%clk 0:02:52.2]} 8. a5 {[%clk 0:02:53.8]} 8... O-O
{[%clk 0:02:52.9]} 9. Nbd2 {[%clk 0:02:47.5]} 9... b5 {[%clk 0:02:51.7]} 10. Re1
{[%clk 0:02:43.2]} 10... a6 {[%clk 0:02:51.5]} 11. d4 {[%clk 0:02:27.4]} 11...
cxd4 {[%clk 0:02:34.8]} 12. Nxd4 {[%clk 0:02:29.3]} 12... Qc7 {[%clk 0:02:35.8]}
13. N2b3 {[%clk 0:02:19]} 13... Nbd7 {[%clk 0:02:35.4]} 14. c3 {[%clk
0:02:15.2]} 14... Nc5 {[%clk 0:02:32.8]} 15. Nxc5 {[%clk 0:02:11.2]} 15... dxc5
{[%clk 0:02:33.3]} 16. Nc2 {[%clk 0:02:12.3]} 16... Nd7 {[%clk 0:02:25.1]} 17.
Bf4 {[%clk 0:02:09.2]} 17... Ne5 {[%clk 0:02:22.1]} 18. Ne3 {[%clk 0:02:05.6]}
18... e6 {[%clk 0:02:23]} 19. Ng4 {[%clk 0:02:04.8]} 19... Rad8 {[%clk
0:02:20.1]} 20. Qe2 {[%clk 0:01:47.4]} 20... h5 {[%clk 0:02:11]} 21. Nxe5 {[%clk
0:01:46.5]} 21... Bxe5 {[%clk 0:02:12.6]} 22. Bg5 {[%clk 0:01:46.3]} 22... Rd7
{[%clk 0:02:06]} 23. Red1 {[%clk 0:01:40.6]} 23... c4 {[%clk 0:01:59.4]} 24.
Rxd7 {[%clk 0:01:38.1]} 24... Qxd7 {[%clk 0:02:00.6]} 25. Rd1 {[%clk 0:01:39.6]}
25... Qc7 {[%clk 0:02:02.1]} 26. Qd2 {[%clk 0:01:27.9]} 26... Qxa5 {[%clk
0:01:51.7]} 27. Bd8 {[%clk 0:01:24.6]} 27... Qa4 {[%clk 0:01:34.9]} 28. Be7
{[%clk 0:01:23.4]} 28... Re8 {[%clk 0:01:29.5]} 29. Bc5 {[%clk 0:01:16.8]} 29...
Bc6 {[%clk 0:01:21.3]} 30. Bf3 {[%clk 0:01:14.9]} 30... Bg7 {[%clk 0:01:13.2]}
31. Qd6 {[%clk 0:01:10.6]} 31... Rc8 {[%clk 0:00:46.6]} 32. Bd4 {[%clk
0:01:06.1]} 32... Bxe4 {[%clk 0:00:41.2]} 33. Be2 {[%clk 0:00:36.3]} 33... Bxd4
{[%clk 0:00:39.6]} 34. Qxd4 {[%clk 0:00:35.8]} 34... Qc2 {[%clk 0:00:38.3]} 35.
Rd2 {[%clk 0:00:33.6]} 35... Qb1+ {[%clk 0:00:38.5]} 36. Rd1 {[%clk 0:00:34.9]}
36... Qc2 {[%clk 0:00:38.6]} 37. Rd2 {[%clk 0:00:36.2]} 37... Qc1+ {[%clk
0:00:37.9]} 38. Rd1 {[%clk 0:00:37.5]} 38... Qxb2 {[%clk 0:00:35.5]} 39. Qxe4
{[%clk 0:00:37.1]} 39... Qxc3 {[%clk 0:00:35.2]} 40. Qb7 {[%clk 0:00:33.9]}
40... Rc5 {[%clk 0:00:29.9]} 41. Qxa6 {[%clk 0:00:29.7]} 41... Kg7 {[%clk
0:00:30.7]} 42. Qd6 {[%clk 0:00:22.9]} 42... Rf5 {[%clk 0:00:28.8]} 43. f4
{[%clk 0:00:19.5]} 43... Qe3+ {[%clk 0:00:27.3]} 44. Kf1 {[%clk 0:00:20.5]}
44... h4 {[%clk 0:00:24.4]} 45. Bg4 {[%clk 0:00:14.3]} 45... hxg3 {[%clk
0:00:21.2]} 46. hxg3 {[%clk 0:00:15.9]} 46... Rc5 {[%clk 0:00:15.9]} 47. Kg2
{[%clk 0:00:13.7]} 47... c3 {[%clk 0:00:15.9]} 48. Qd8 {[%clk 0:00:07.2]} 48...
Rd5 {[%clk 0:00:07.6]} 49. Rxd5 {[%clk 0:00:07.6]} 49... exd5 {[%clk 0:00:08.9]}
50. Qc7 {[%clk 0:00:06.5]} 50... Qd2+ {[%clk 0:00:05.6]} 51. Kh3 {[%clk
0:00:07]} 51... Qd4 {[%clk 0:00:06.7]} 52. Be6 {[%clk 0:00:06.9]} 52... Qf6
{[%clk 0:00:07.7]} 53. f5 {[%clk 0:00:05.4]} 53... d4 {[%clk 0:00:06.9]} 54. g4
{[%clk 0:00:04.6]} 54... gxf5 {[%clk 0:00:07.9]} 55. gxf5 {[%clk 0:00:04.8]}
55... d3 {[%clk 0:00:08.4]} 56. Qg3+ {[%clk 0:00:05.4]} 56... Kf8 {[%clk
0:00:09.4]} 57. Qd6+ {[%clk 0:00:05.5]} 57... Kg7 {[%clk 0:00:10.2]} 58. Qg3+
{[%clk 0:00:06.5]} 58... Kh7 {[%clk 0:00:11.4]} 59. Qxd3 {[%clk 0:00:05.7]}
59... fxe6 {[%clk 0:00:11]} 60. fxe6+ {[%clk 0:00:07.6]} 60... Kg8 {[%clk
0:00:10.7]} 61. Qxb5 {[%clk 0:00:05.7]} 61... Qxe6+ {[%clk 0:00:10.7]} 62. Kg3
{[%clk 0:00:05.6]} 62... Qe3+ {[%clk 0:00:11.8]} 63. Kh4 {[%clk 0:00:04.9]}
63... Kf7 {[%clk 0:00:13.2]} 64. Qd5+ {[%clk 0:00:03.4]} 64... Kf6 {[%clk
0:00:13.8]} 65. Qd6+ {[%clk 0:00:04.7]} 65... Kf5 {[%clk 0:00:14.7]} 66. Qd5+
{[%clk 0:00:04.7]} 66... Kf4 {[%clk 0:00:16]} 67. Qg5+ {[%clk 0:00:04.5]} 67...
Kf3 {[%clk 0:00:16.9]} 68. Qg4+ {[%clk 0:00:04.1]} 68... Kf2 {[%clk 0:00:17.9]}
69. Qf5+ {[%clk 0:00:04.2]} 69... Ke1 {[%clk 0:00:17.9]} 70. Qb1+ {[%clk
0:00:03]} 70... Kd2 {[%clk 0:00:19.5]} 71. Qb4 {[%clk 0:00:03.8]} 71... Qd3
{[%clk 0:00:14.7]} 72. Kh5 {[%clk 0:00:03.9]} 72... Kd1 {[%clk 0:00:14.8]} 73.
Qa4+ {[%clk 0:00:03]} 73... c2 {[%clk 0:00:15.1]} 74. Kh6 {[%clk 0:00:04.9]}
74... Kd2 {[%clk 0:00:15.2]} 75. Qb4+ {[%clk 0:00:05.8]} 75... Ke2 {[%clk
0:00:16.5]} 76. Qb2 {[%clk 0:00:06.3]} 76... Qd2+ {[%clk 0:00:17]} 0-1

[Event "*** MasterClass Titled Tuesday Blitz"]
[Site "Chess.com"]
[Date "2017.11.07"]
[Round "7"]
[White "gammagramma"]
[Black "Jadeit90"]
[Result "1-0"]
[WhiteElo "2451"]
[BlackElo "2299"]
[TimeControl "180+2"]
[EndTime "15:34:55 PST"]
[Termination "gammagramma won by resignation"]

1. d4 {[%clk 0:02:47]} 1... Nf6 {[%clk 0:03:00]} 2. Nf3 {[%clk 0:02:48.2]} 2...
c5 {[%clk 0:03:01.4]} 3. c3 {[%clk 0:02:49.1]} 3... cxd4 {[%clk 0:03:02.6]} 4.
cxd4 {[%clk 0:02:51]} 4... g6 {[%clk 0:03:04.2]} 5. Nc3 {[%clk 0:02:52.4]} 5...
Bg7 {[%clk 0:03:05.7]} 6. Bg5 {[%clk 0:02:54]} 6... O-O {[%clk 0:03:07.6]} 7. e4
{[%clk 0:02:55.4]} 7... d5 {[%clk 0:03:07.3]} 8. e5 {[%clk 0:02:56.5]} 8... Ne4
{[%clk 0:03:08.6]} 9. h4 {[%clk 0:02:57.2]} 9... Nxg5 {[%clk 0:03:07.2]} 10.
hxg5 {[%clk 0:02:58]} 10... Nc6 {[%clk 0:03:08.6]} 11. Bd3 {[%clk 0:02:58.4]}
11... Bg4 {[%clk 0:03:09.3]} 12. Rh4 {[%clk 0:02:58.7]} 12... Bxf3 {[%clk
0:03:09.9]} 13. Qxf3 {[%clk 0:02:58.5]} 13... e6 {[%clk 0:03:10]} 14. Qe3 {[%clk
0:02:54.8]} 14... h6 {[%clk 0:03:02]} 15. f4 {[%clk 0:02:49.3]} 15... hxg5
{[%clk 0:03:01.4]} 16. fxg5 {[%clk 0:02:50.9]} 16... Qb6 {[%clk 0:03:02.7]} 17.
O-O-O {[%clk 0:02:51.1]} 17... Nxe5 {[%clk 0:02:56.5]} 18. Rdh1 {[%clk
0:02:48.7]} 18... Nxd3+ {[%clk 0:02:56.4]} 19. Qxd3 {[%clk 0:02:48.6]} 19...
Rac8 {[%clk 0:02:52.1]} 20. Rh8+ {[%clk 0:02:37.4]} 20... Bxh8 {[%clk
0:02:46.2]} 21. Qh3 {[%clk 0:02:39.3]} 21... Rxc3+ {[%clk 0:02:30]} 22. bxc3
{[%clk 0:02:38.7]} 1-0

[Event "*** MasterClass Titled Tuesday Blitz"]
[Site "Chess.com"]
[Date "2017.11.07"]
[Round "7"]
[White "Abdodi"]
[Black "kikydu96"]
[Result "0-1"]
[WhiteElo "2122"]
[BlackElo "2398"]
[TimeControl "180+2"]
[EndTime "15:37:05 PST"]
[Termination "kikydu96 won by resignation"]

1. e4 {[%clk 0:03:01.9]} 1... c5 {[%clk 0:02:57.8]} 2. d3 {[%clk 0:02:59.7]}
2... e6 {[%clk 0:02:52.7]} 3. g3 {[%clk 0:03:00]} 3... Nc6 {[%clk 0:02:53]} 4.
Bg2 {[%clk 0:03:00.8]} 4... Nf6 {[%clk 0:02:52.8]} 5. Nd2 {[%clk 0:03:01.2]}
5... Be7 {[%clk 0:02:53.8]} 6. Ngf3 {[%clk 0:03:02.1]} 6... O-O {[%clk
0:02:54.8]} 7. O-O {[%clk 0:03:03]} 7... d5 {[%clk 0:02:55.9]} 8. Re1 {[%clk
0:02:59.5]} 8... b6 {[%clk 0:02:53.6]} 9. h4 {[%clk 0:02:59.1]} 9... Bb7 {[%clk
0:02:53.3]} 10. e5 {[%clk 0:02:53.9]} 10... Ng4 {[%clk 0:02:48.8]} 11. Nf1
{[%clk 0:02:51.4]} 11... f6 {[%clk 0:02:39]} 12. exf6 {[%clk 0:02:40.5]} 12...
Rxf6 {[%clk 0:02:38.8]} 13. N1h2 {[%clk 0:02:37.2]} 13... Nxh2 {[%clk
0:02:38.1]} 14. Kxh2 {[%clk 0:02:32.3]} 14... Qf8 {[%clk 0:02:30.1]} 15. Bg5
{[%clk 0:02:25.7]} 15... Rg6 {[%clk 0:02:30.3]} 16. Bxe7 {[%clk 0:02:23.4]}
16... Qxe7 {[%clk 0:02:32.2]} 17. Qe2 {[%clk 0:02:22.7]} 17... Rf8 {[%clk
0:02:30.5]} 18. Bh3 {[%clk 0:02:20]} 18... e5 {[%clk 0:02:13]} 19. h5 {[%clk
0:01:56.1]} 19... Rgf6 {[%clk 0:02:11]} 20. Bg2 {[%clk 0:01:55.3]} 20... e4
{[%clk 0:02:04.1]} 21. dxe4 {[%clk 0:01:47.4]} 21... Rxf3 {[%clk 0:02:01.7]} 22.
Bxf3 {[%clk 0:01:46.6]} 22... Nd4 {[%clk 0:02:02.6]} 23. Qd3 {[%clk 0:01:28.9]}
23... Nxf3+ {[%clk 0:02:02.7]} 24. Kg2 {[%clk 0:01:29.8]} 24... Nxe1+ {[%clk
0:02:00.6]} 25. Rxe1 {[%clk 0:01:31.1]} 25... dxe4 {[%clk 0:02:02.2]} 26. Qc4+
{[%clk 0:01:28.6]} 26... Kh8 {[%clk 0:02:03.1]} 27. Re3 {[%clk 0:01:28.7]} 27...
Qf6 {[%clk 0:02:03]} 28. Qe2 {[%clk 0:01:27.2]} 28... Qxb2 {[%clk 0:02:03.7]}
0-1

[Event "*** MasterClass Titled Tuesday Blitz"]
[Site "Chess.com"]
[Date "2017.11.07"]
[Round "7"]
[White "jncool68"]
[Black "Squirlolz"]
[Result "1-0"]
[WhiteElo "2486"]
[BlackElo "2428"]
[TimeControl "180+2"]
[EndTime "15:37:51 PST"]
[Termination "jncool68 won by resignation"]

1. e4 {[%clk 0:02:52.7]} 1... e6 {[%clk 0:03:00.9]} 2. d4 {[%clk 0:02:52.4]}
2... d5 {[%clk 0:03:02.5]} 3. Nc3 {[%clk 0:02:53]} 3... Nf6 {[%clk 0:03:03.2]}
4. e5 {[%clk 0:02:54]} 4... Nfd7 {[%clk 0:03:04.5]} 5. f4 {[%clk 0:02:55.5]}
5... c5 {[%clk 0:03:05.9]} 6. Nf3 {[%clk 0:02:56.9]} 6... Nc6 {[%clk 0:03:07.4]}
7. Be3 {[%clk 0:02:57.5]} 7... a6 {[%clk 0:03:08.8]} 8. Qd2 {[%clk 0:02:57]}
8... Be7 {[%clk 0:03:10.2]} 9. a3 {[%clk 0:02:53.8]} 9... b5 {[%clk 0:03:07.5]}
10. dxc5 {[%clk 0:02:51.4]} 10... Nxc5 {[%clk 0:03:08.4]} 11. Qf2 {[%clk
0:02:51.1]} 11... Na4 {[%clk 0:02:59.7]} 12. Nxa4 {[%clk 0:02:51]} 12... bxa4
{[%clk 0:03:01.6]} 13. Bd3 {[%clk 0:02:51.4]} 13... Rb8 {[%clk 0:03:02.1]} 14.
O-O {[%clk 0:02:44.2]} 14... Rxb2 {[%clk 0:02:59.7]} 15. f5 {[%clk 0:02:43.4]}
15... exf5 {[%clk 0:02:55.3]} 16. Nd4 {[%clk 0:02:40]} 16... Nxd4 {[%clk
0:02:45]} 17. Bxd4 {[%clk 0:02:39.6]} 17... Rb8 {[%clk 0:02:46.5]} 18. Bxf5
{[%clk 0:02:38.1]} 18... Bxf5 {[%clk 0:02:44.6]} 19. Qxf5 {[%clk 0:02:38.8]}
19... O-O {[%clk 0:02:46.5]} 20. e6 {[%clk 0:02:36.8]} 20... fxe6 {[%clk
0:02:27.6]} 21. Qxe6+ {[%clk 0:02:34.9]} 21... Kh8 {[%clk 0:02:28.5]} 22. Rxf8+
{[%clk 0:02:34.9]} 22... Bxf8 {[%clk 0:02:12.4]} 23. Rf1 {[%clk 0:02:34.8]}
23... Rc8 {[%clk 0:01:24.9]} 24. Qxa6 {[%clk 0:02:06.3]} 24... Rxc2 {[%clk
0:01:07.8]} 25. Qxa4 {[%clk 0:02:06.7]} 25... Rc4 {[%clk 0:01:04.9]} 26. Qd7
{[%clk 0:02:06.8]} 26... Rc8 {[%clk 0:00:52.5]} 27. Rxf8+ {[%clk 0:01:54.8]}
27... Qxf8 {[%clk 0:00:51.4]} 28. Bxg7+ {[%clk 0:01:56.3]} 28... Qxg7 {[%clk
0:00:47.3]} 29. Qxc8+ {[%clk 0:01:57.1]} 29... Qg8 {[%clk 0:00:48.8]} 30. Qxg8+
{[%clk 0:01:57.9]} 1-0

[Event "*** MasterClass Titled Tuesday Blitz"]
[Site "Chess.com"]
[Date "2017.11.07"]
[Round "7"]
[White "pKiLz5Rn9b"]
[Black "GMHess"]
[Result "0-1"]
[WhiteElo "2566"]
[BlackElo "2581"]
[TimeControl "180+2"]
[EndTime "15:38:04 PST"]
[Termination "GMHess won by resignation"]

1. b3 {[%clk 0:02:59]} 1... Nc6 {[%clk 0:02:44.7]} 2. Bb2 {[%clk 0:02:59.6]}
2... e5 {[%clk 0:02:45.9]} 3. e3 {[%clk 0:03:00.9]} 3... Nf6 {[%clk 0:02:41.2]}
4. Nf3 {[%clk 0:03:01.8]} 4... e4 {[%clk 0:02:40.5]} 5. Nd4 {[%clk 0:03:02.7]}
5... Nxd4 {[%clk 0:02:40.6]} 6. Bxd4 {[%clk 0:03:04.6]} 6... c5 {[%clk
0:02:41.7]} 7. Bb2 {[%clk 0:03:05.2]} 7... Be7 {[%clk 0:02:38.3]} 8. d3 {[%clk
0:03:06.5]} 8... O-O {[%clk 0:02:35.3]} 9. Nd2 {[%clk 0:03:06.8]} 9... d5 {[%clk
0:02:28.5]} 10. c4 {[%clk 0:03:06.6]} 10... d4 {[%clk 0:01:49]} 11. exd4 {[%clk
0:03:05.5]} 11... e3 {[%clk 0:01:45.2]} 12. fxe3 {[%clk 0:03:06.3]} 12... Ng4
{[%clk 0:01:45.8]} 13. Qf3 {[%clk 0:03:05.4]} 13... Bg5 {[%clk 0:01:34]} 14. Ne4
{[%clk 0:02:59]} 14... Bh6 {[%clk 0:01:01.6]} 15. dxc5 {[%clk 0:02:53.6]} 15...
Nxe3 {[%clk 0:00:54.4]} 16. Be2 {[%clk 0:02:33.6]} 16... f5 {[%clk 0:00:29.4]}
17. Nd6 {[%clk 0:02:33.8]} 17... Qa5+ {[%clk 0:00:26.9]} 18. Kf2 {[%clk
0:02:26.4]} 18... Qxc5 {[%clk 0:00:27.9]} 19. Nxc8 {[%clk 0:02:22.4]} 19... Nd1+
{[%clk 0:00:24.8]} 20. Kg3 {[%clk 0:02:21.6]} 20... f4+ {[%clk 0:00:17.4]} 21.
Kh4 {[%clk 0:02:16.6]} 21... Qg5+ {[%clk 0:00:13.3]} 22. Kh3 {[%clk 0:02:17.1]}
22... Qf5+ {[%clk 0:00:14.8]} 23. Qg4 {[%clk 0:02:08.1]} 23... Nf2+ {[%clk
0:00:15]} 24. Kh4 {[%clk 0:02:09.6]} 24... Nxg4 {[%clk 0:00:16.6]} 25. Bxg4
{[%clk 0:02:11.5]} 25... Qg5+ {[%clk 0:00:16.2]} 26. Kh3 {[%clk 0:02:12.3]}
26... Raxc8 {[%clk 0:00:17.8]} 0-1

[Event "*** MasterClass Titled Tuesday Blitz"]
[Site "Chess.com"]
[Date "2017.11.07"]
[Round "7"]
[White "ChadBiryani"]
[Black "AllStarShark"]
[Result "1-0"]
[WhiteElo "2174"]
[BlackElo "2262"]
[TimeControl "180+2"]
[EndTime "15:38:18 PST"]
[Termination "ChadBiryani won on time"]

1. d4 {[%clk 0:03:01.9]} 1... d5 {[%clk 0:02:57]} 2. Bf4 {[%clk 0:03:02.7]} 2...
Nf6 {[%clk 0:02:56.6]} 3. e3 {[%clk 0:03:03.8]} 3... c5 {[%clk 0:02:57.6]} 4.
dxc5 {[%clk 0:03:04.5]} 4... Nc6 {[%clk 0:02:55.7]} 5. Bb5 {[%clk 0:03:03.8]}
5... e6 {[%clk 0:02:55.6]} 6. b4 {[%clk 0:03:03.7]} 6... Bd7 {[%clk 0:02:49.5]}
7. c3 {[%clk 0:02:42.7]} 7... a5 {[%clk 0:02:44.6]} 8. Qb3 {[%clk 0:02:30.9]}
8... Be7 {[%clk 0:02:33.5]} 9. Nf3 {[%clk 0:02:27.1]} 9... O-O {[%clk
0:02:32.9]} 10. O-O {[%clk 0:02:19.4]} 10... Nh5 {[%clk 0:02:32.4]} 11. Nbd2
{[%clk 0:02:12.6]} 11... Nxf4 {[%clk 0:02:31.5]} 12. exf4 {[%clk 0:02:14.5]}
12... Bf6 {[%clk 0:02:28.4]} 13. Rab1 {[%clk 0:02:12.8]} 13... b6 {[%clk
0:02:18.9]} 14. Bxc6 {[%clk 0:02:08.5]} 14... Bxc6 {[%clk 0:02:20.8]} 15. b5
{[%clk 0:02:09.2]} 15... Bb7 {[%clk 0:02:20.3]} 16. c6 {[%clk 0:02:09.2]} 16...
Bc8 {[%clk 0:02:21.3]} 17. Ne5 {[%clk 0:02:08.8]} 17... Qc7 {[%clk 0:02:03.1]}
18. Ndf3 {[%clk 0:02:07.9]} 18... Be7 {[%clk 0:02:03]} 19. c4 {[%clk 0:02:08.1]}
19... f6 {[%clk 0:02:02.8]} 20. Nd3 {[%clk 0:02:06.9]} 20... e5 {[%clk
0:01:24.3]} 21. cxd5 {[%clk 0:02:05.9]} 21... e4 {[%clk 0:01:23.5]} 22. d6+
{[%clk 0:02:03.5]} 22... Be6 {[%clk 0:00:39.4]} 23. Qxe6+ {[%clk 0:02:01.8]}
23... Kh8 {[%clk 0:00:21.4]} 24. dxc7 {[%clk 0:02:01.8]} 24... exf3 {[%clk
0:00:19.9]} 25. Qxe7 {[%clk 0:02:01.6]} 25... Rfe8 {[%clk 0:00:18.1]} 26. Qd7
{[%clk 0:02:00.8]} 26... f5 {[%clk 0:00:14.7]} 27. Rfe1 {[%clk 0:02:01.2]} 27...
Re2 {[%clk 0:00:13.3]} 28. Qd8+ {[%clk 0:02:00.7]} 1-0

[Event "*** MasterClass Titled Tuesday Blitz"]
[Site "Chess.com"]
[Date "2017.11.07"]
[Round "7"]
[White "Bryakin_Mikhail"]
[Black "Hanging_pointer"]
[Result "1-0"]
[WhiteElo "2505"]
[BlackElo "2340"]
[TimeControl "180+2"]
[EndTime "15:38:43 PST"]
[Termination "Bryakin_Mikhail won by checkmate"]

1. b3 {[%clk 0:03:01.9]} 1... e5 {[%clk 0:02:59.4]} 2. Bb2 {[%clk 0:03:02.7]}
2... Nc6 {[%clk 0:03:01.3]} 3. Nf3 {[%clk 0:03:04]} 3... e4 {[%clk 0:03:01.2]}
4. Nd4 {[%clk 0:03:05.2]} 4... Nf6 {[%clk 0:03:02]} 5. e3 {[%clk 0:03:03.5]}
5... Bc5 {[%clk 0:03:02.2]} 6. Nxc6 {[%clk 0:03:02.7]} 6... dxc6 {[%clk
0:03:04.1]} 7. d4 {[%clk 0:03:02.1]} 7... exd3 {[%clk 0:02:40.5]} 8. Bxd3 {[%clk
0:03:02.7]} 8... Bg4 {[%clk 0:02:28.1]} 9. Be2 {[%clk 0:02:58.3]} 9... Qxd1+
{[%clk 0:02:20.1]} 10. Bxd1 {[%clk 0:03:00.2]} 10... Bxd1 {[%clk 0:02:16.5]} 11.
Kxd1 {[%clk 0:03:02.1]} 11... O-O-O+ {[%clk 0:02:08.1]} 12. Ke2 {[%clk
0:03:03.4]} 12... Ne4 {[%clk 0:01:42.5]} 13. f3 {[%clk 0:02:54.3]} 13... Ng5
{[%clk 0:01:16.5]} 14. h4 {[%clk 0:02:47.2]} 14... Rhe8 {[%clk 0:00:59.6]} 15.
e4 {[%clk 0:02:38]} 15... Nxe4 {[%clk 0:00:45.3]} 16. fxe4 {[%clk 0:02:32.9]}
16... Rxe4+ {[%clk 0:00:46.2]} 17. Kf3 {[%clk 0:02:34.2]} 17... Re3+ {[%clk
0:00:42.2]} 18. Kf4 {[%clk 0:02:11.3]} 18... Rde8 {[%clk 0:00:33]} 19. Bxg7
{[%clk 0:02:05.5]} 19... Bd6+ {[%clk 0:00:28]} 20. Kf5 {[%clk 0:02:06.6]} 20...
Re2 {[%clk 0:00:24.6]} 21. Rf1 {[%clk 0:02:03.2]} 21... Rxg2 {[%clk 0:00:20.1]}
22. Bf6 {[%clk 0:01:56.1]} 22... Rxc2 {[%clk 0:00:17.9]} 23. Nc3 {[%clk
0:01:54]} 23... Re3 {[%clk 0:00:15.3]} 24. Ne4 {[%clk 0:01:52.2]} 24... Rce2
{[%clk 0:00:12.8]} 25. Ng5 {[%clk 0:01:52.3]} 25... h6 {[%clk 0:00:05.8]} 26.
Nxf7 {[%clk 0:01:52.8]} 26... Ba3 {[%clk 0:00:06.7]} 27. Nxh6 {[%clk 0:01:52.1]}
27... Rg2 {[%clk 0:00:04.4]} 28. Rae1 {[%clk 0:01:47.6]} 28... Rd3 {[%clk
0:00:03.4]} 29. Re8+ {[%clk 0:01:48]} 29... Kd7 {[%clk 0:00:04.2]} 30. Rd8#
{[%clk 0:01:49.5]} 1-0